Workbook

Sheet tvrdá opatření
A1: Číslo | B1: Druh dopravy | C1: Investor | D1: Název | E1: Popis | F1: Cena | G1: Příspěvek města | H1: 2018 | I1: 2019 | J1: 2020 | K1: 2021 | L1: 2022 | M1: 2023 | N1: 2024 | O1: 2025
A2: Doprava v klidu
A3: 1 | B3: IAD | C3: SMČB | D3: P+R Jírovcova 2. etapa | E3: Realizace 1. etapy již probíhá, cca 190 stání | F3: 20000000 | G3: =H3+I3+J3+K3+L3+M3+N3+O3 -> 20000000 | I3: 20000000
A4: 2 | B4: IAD | C4: SMČB | D4: P+R Dlouhá louka | E4: Změna režimu stávajícího parkoviště - vymístění kamionů | F4: 50000000 | G4: =H4+I4+J4+K4+L4+M4+N4+O4 -> 50000000 | I4: 20000000 | J4: 30000000
A5: 3 | B5: IAD | C5: SMČB | D5: P+R Sportovní hala | E5: Parkovací dům, příprava na ÚR | F5: 110000000 | G5: 110000000 | J5: 110000000
A6: 4 | B6: IAD | C6: SMČB | D6: P+R Dynamo | E6: Osazení závorového systému | F6: 3900000 | G6: 3900000 | H6: 3900000
A7: 5 | B7: IAD | C7: SMČB | D7: P+R Planá, Letiště | E7: P+R a záchytné parkoviště pro kamiony | F7: 10000000 | G7: 10000000 | I7: 2000000 | J7: 8000000
A8: 6 | B8: IAD | C8: SMČB | D8: P+R Mladé | F8: 30000000 | G8: 30000000 | L8: 30000000
A9: 7 | B9: IAD | C9: SMČB | D9: P+R Generála Píky | F9: 15000000 | G9: 15000000 | O9: 15000000
A10: 8 | B10: IAD | C10: SMČB | D10: P+R Vltava | F10: 2000000 | G10: 2000000 | M10: 2000000
A11: 10 | B11: IAD | C11: SMČB | D11: P+R Rožnov | F11: 30000000 | G11: 30000000 | L11: 30000000
A12: 11 | B12: IAD | C12: SMČB | D12: Organizace dopravy v klidu na území města | E12: Parkovací zóny | F12: 50000000 | G12: 50000000 | H12: 5000000 | I12: 15000000 | K12: 30000000
A13: 12 | B13: IAD | C13: SMČB | D13: Parkovací dům Sportovní hala 2. etapa, Dynamo, sídliště | F13: 100000000 | G13: 100000000 | J13: 30000000 | L13: 30000000 | N13: 40000000
A14: Dostavba komunikací
A15: 14 | B15: IAD/CYKLO | C15: ŘSD/SMČB | D15: Severní spojka | E15: Přeložka I/20 Severní spojka, varianta základní - 3 úseky | F15: 2070364000 | G15: =H15+I15+J15+K15+L15+M15+N15+O15 -> 50000000 | K15: 50000000
A16: 15 | B16: IAD/CYKLO | C16: ŘSD/SMČB | D16: Okružní 1. etapa | E16: Zlepšení parametrů ulice Okružní, 1. etapa | F16: 125000000 | G16: =H16+I16+J16+K16+L16+M16+N16+O16 -> 25000000 | K16: 25000000
A17: 16 | B17: IAD/CYKLO | C17: JČK/SMČB | D17: Okružní 2. etapa | E17: Zlepšení parametrů ulice Okružní, 2. etapa - Generála Píky - Rudolfovská | F17: 25000000 | G17: 25000000 | O17: 25000000
A18: 17 | B18: IAD/CYKLO | C18: JČK/SMČB | D18: Horákové - Litvínovická - 1. etapa Branišovská - Na Sádkách | E18: Přeložka III/14322 - 1. etapa | F18: 113050000 | G18: 50000000 | L18: 50000000
A19: 18 | B19: IAD/CYKLO | C19: JČK/SMČB | D19: Horákové - Litvínovická - 2. etapa Na Sádkách - Litvínovická | E19: Přeložka III/14322 - 2. etapa | F19: 107101000 | G19: 50000000 | M19: 50000000
A20: 19 | B20: IAD | C20: JČK/SMČB | D20: Přemostění Vltavy - Litvínovická - Schneidera | E20: Přeložka III/14322 - 3. etapa - přemostění Vltavy | F20: 450000000 | G20: 50000000 | L20: 25000000 | M20: 25000000
A21: 21 | B21: IAD | C21: JČK | D21: Jižní tangenta 1. etapa | E21: Jižní tangenta České Budějovice - 1. etapa | F21: 500000000 | G21: 0
A22: 23 | B22: IAD | C22: JČK/SMČB | D22: Podjezd pod nádražím | E22: Přeložka silnic II/156 a II/157 - 3.2 etapa | F22: 1300000000 | G22: 50000000 | H22: 10000000 | I22: 40000000
A23: 24 | B23: IAD | C23: JČK/SMČB | D23: Zanádražní komunikace - lokalita Za hřbitovem (včetně cyklostezek) | E23: Přeložka silnic II/156 a II/157 - 4. etapa, větev východ | F23: 34916000 | G23: 10000000 | K23: 10000000
A24: 25 | B24: IAD | C24: JČK/SMČB | D24: Zanádražní komunikace - do lokality MÚK Pohůrka - D3 od západu (včetně cyklostezek) | E24: Přeložka silnic II/156 a II/157 - 5. etapa | F24: 164667000 | G24: 10000000 | N24: 10000000
A25: 26 | B25: IAD | C25: JČK | D25: Zanádražní komunikace - od MÚK Pohůrka - D3 od východu | E25: Přeložka silnic II/156 a II/157 - 6. etapa | F25: 65912000 | G25: 0
A26: 27 | B26: IAD | C26: JČK | D26: Obchvat Srubce | E26: Přeložka silnice II/157 - obchvat Srubce | F26: 252227000 | G26: 0
A27: 30 | B27: IAD/CYKLO | C27: JČK/SMČB | D27: Rudolfovská x Hlinská - nová okružní křižovatka | E27: 1.-2. etapa, včetně cykloopatření | F27: 62000000 | G27: 20000000 | O27: 20000000
A28: 31 | B28: IAD/CYKLO | C28: SMČB | D28: Propojení Hlinská - Hraniční | F28: 45000000 | G28: 45000000 | O28: 45000000
A29: 32 | B29: IAD/CYKLO | C29: SMČB | D29: Rudolfovská - Vrbenská | E29: Propojení Vrbenská - Rudolfovská třída | F29: 100000000 | G29: 100000000 | K29: 100000000
A30: 36 | B30: IAD | C30: ŘSD | D30: Přeložka silnice III/000341 - Vráto - Hlinsko | E30: Paralelní komunikace s D3 | F30: 40000000 | G30: 0
A31: 37 | B31: IAD | C31: JČK/SMČB | D31: Propojení Dobrovodská - Hlinská | E31: Navazující na paralelní komunikaci s D3 | F31: 50000000 | G31: 10000000 | M31: 10000000
A32: 38 | B32: VHD/CYKLO/PĚŠÍ | C32: ŘSD/SMČB | D32: Stavební úpravy křižovatky silnic Na Dlouhé louce x Husova - České Budějovice | E32: Celková přestavba včetně vybudování lávky pro pěší a cyklisty a BUS pruhu | F32: 65000000 | G32: 30000000 | K32: 30000000
A33: 39 | B33: IAD | C33: ŘSD | D33: Obchvat Lišov - Vranín | E33: I/34 Obchvat Lišov - Vranín | F33: 1078512396 | G33: 0
A34: 40 | B34: IAD/CYKLO/PĚŠÍ | C34: JČK/SMČB | D34: Homogenizace Plavské na území města | E34: Rozšíření stávající komunikace a vybudování cyklostezky | F34: 15000000 | G34: 15000000 | K34: 15000000
A35: 41 | B35: IAD/CYKLO/VHD | C35: SMČB | D35: Revitalizace Pražské třídy | E35: Včetně cyklobuspruhů | F35: 70000000 | G35: 70000000 | O35: 70000000
A36: 43 | B36: IAD | C36: SMČB | D36: Rekonstrukce páteřních ulic | F36: =SUM(H36:O36) -> 480000000 | G36: 480000000 | H36: 60000000 | I36: 60000000 | J36: 60000000 | K36: 60000000 | L36: 60000000 | M36: 60000000 | N36: 60000000 | O36: 60000000
A37: 44 | B37: IAD | C37: SMČB | D37: Oprava místních komunikací | F37: =SUM(H37:O37) -> 320000000 | G37: 320000000 | H37: 40000000 | I37: 40000000 | J37: 40000000 | K37: 40000000 | L37: 40000000 | M37: 40000000 | N37: 40000000 | O37: 40000000
A38: 45 | B38: IAD | C38: soukromý investor | D38: Místní komunikace - rozvoj území dle územního plánu | F38: 0 | G38: 0
A39: 46 | B39: IAD | C39: SMČB | D39: Zklidnění dopravy v obytných částech města | F39: 16000000 | G39: 16000000 | H39: 2000000 | I39: 2000000 | J39: 2000000 | K39: 2000000 | L39: 2000000 | M39: 2000000 | N39: 2000000 | O39: 2000000
A40: Dostavba dálnice
A41: 47 | B41: IAD | C41: ŘSD | D41: D3 Úsilné - Nové Hodějovice | E41: D3 0310/I Úsilné - Nové Hodějovice | F41: 6784000000 | G41: 0
A42: 48 | B42: IAD | C42: ŘSD | D42: D3 Nové Hodějovice - Dolní Třebonín | E42: D3 0310/II (část) Nové Hodějovice - Dolní Třebonín | F42: 5950000000 | G42: 0
A43: Železniční stavby
A44: 50 | B44: VHD | C44: SŽDC | D44: IV. tranzitní železniční koridor - Modernizace trati Nemanice I - Ševětín | F44: 1286500000 | G44: 0
A45: 54 | B45: VHD | C45: SŽDC | D45: Nová železniční zastávka Rožnov | F45: 20000000 | G45: 0
A46: 55 | B46: VHD | C46: SŽDC | D46: Nová železniční zastávka Nové Roudné | F46: 20000000 | G46: 0
A47: Cyklistická a pěší doprava
A48: 58 | B48: CYKLO/PĚŠÍ | C48: SMČB | D48: Cyklo a pěší lávka Výstaviště - Pražské sídliště | E48: Po spojnici Branišovské ulice přes výstaviště a lávkou přes Vltavu k nákupnímu areálu Družby a Pekárenské ulici | F48: 150000000 | G48: =H48+I48+J48+K48+L48+M48+N48+O48 -> 150000000 | N48: 150000000
A49: 60 | B49: CYKLO/PĚŠÍ | C49: SMČB | D49: Cyklo a pěší lávka v Rožnově | F49: 30000000 | G49: =H49+I49+J49+K49+L49+M49+N49+O49 -> 30000000 | O49: 30000000
A50: 61 | B50: CYKLO | C50: SMČB | D50: Cyklostezka podél Husovy ul., úsek Na Dlouhé louce - Studentská | F50: 5000000 | G50: 5000000 | J50: 5000000
A51: 63 | B51: CYKLO | C51: SMČB | D51: Cyklostezka do Roudného | F51: 5000000 | G51: 5000000 | K51: 5000000
A52: 64 | B52: CYKLO | C52: SMČB | D52: Cyklostezka do Litvínovic | F52: 5000000 | G52: 5000000 | K52: 5000000
A53: 65 | B53: CYKLO | C53: SMČB | D53: Cyklostezka do Plané | F53: 5000000 | G53: 5000000 | L53: 5000000
A54: 66 | B54: CYKLO | C54: SMČB | D54: Cyklostezka Suchomel | F54: 10000000 | G54: 10000000 | J54: 10000000
A55: 67 | B55: CYKLO | C55: SMČB | D55: Cyklostezka okolo Vráteckého potoka | F55: 20000000 | G55: 20000000 | K55: 20000000
A56: 68 | B56: CYKLO | C56: SMČB | D56: Cyklostezka sídliště Vltava | F56: 6000000 | G56: 6000000 | I56: 2000000 | J56: 3000000 | K56: 1000000
A57: 70 | B57: CYKLO | C57: SMČB | D57: Cyklostezka ulice Rudolfovská - Hraniční | F57: 4000000 | G57: 4000000 | O57: 4000000
A58: 73 | B58: CYKLO | C58: SMČB | D58: Cyklopruhy Novohradská | F58: 200000 | G58: 200000 | J58: 200000
A59: 74 | B59: CYKLO | C59: SMČB | D59: Ochranné pruhy pro cyklisty na Lidické | F59: 500000 | G59: 500000 | I59: 500000
A60: 75 | B60: CYKLO | C60: SMČB | D60: Cyklopřejezd přes ulici J. Boreckého | F60: 300000 | G60: 300000 | I60: 300000
A61: 76 | B61: CYKLO | C61: SMČB | D61: Cykloopatření na Rudolfovské třídě | F61: 300000 | G61: 300000 | M61: 300000
A62: 77 | B62: CYKLO | C62: SMČB | D62: Cykloopatření na ulici Generála Svobody | F62: 200000 | G62: 200000 | M62: 200000
A63: 78 | B63: CYKLO | C63: SMČB | D63: Cykloopatření v ulici Družstevní, E. Beneše | F63: 500000 | G63: 500000 | L63: 500000
A64: 79 | B64: CYKLO | C64: SMČB | D64: Cyklostezka podél Dobrovodského potoka | F64: 5000000 | G64: 5000000 | K64: 5000000
A65: 82 | B65: CYKLO | C65: SMČB | D65: Ochranné pruhy pro cyklisty v ulici Milady Horákové | F65: 300000 | G65: 300000 | J65: 300000
A66: 83 | B66: CYKLO | C66: SMČB | D66: Ochranné pruhy pro cyklisty v ulici E. Rošického | F66: 200000 | G66: 200000 | J66: 200000
A67: 84 | B67: CYKLO | C67: SMČB | D67: Ochranné pruhy pro cyklisty v ulici Branišovská | F67: 300000 | G67: 300000 | K67: 300000
A68: 85 | B68: CYKLO | C68: SMČB | D68: Ochranné pruhy pro cyklisty v ulici Husova | F68: 300000 | G68: 300000 | K68: 300000
A69: 86 | B69: CYKLO | C69: SMČB | D69: Kapacitní parkování pro cyklisty | F69: =SUM(H69:O69) -> 1200000 | G69: 1200000 | H69: 150000 | I69: 150000 | J69: 150000 | K69: 150000 | L69: 150000 | M69: 150000 | N69: 150000 | O69: 150000
A70: 87 | B70: CYKLO/PĚŠÍ | C70: SMČB | D70: Lávka přes vlakové nádraží | E70: Lávka přes vlakové nádraží propojující ul. Nádražní – U Lávky | F70: 100000000 | G70: =H70+I70+J70+K70+L70+M70+N70+O70 -> 100000000 | K70: 100000000
A71: 88 | B71: CYKLO/PĚŠÍ | C71: SMČB | D71: Rekonstrukce pěší zóny v Kanovnické ulici | F71: 100000000 | G71: 100000000 | J71: 100000000
B72: CYKLO/PĚŠÍ | C72: SMČB | D72: Cyklotrasa E + chodník Trägerova | F72: 11500000 | G72: 11500000 | H72: 7500000 | I72: 4000000
A73: 90 | B73: CYKLO | C73: SMČB/JČK/OBEC | D73: Cyklostezka Nemanice - Hrdějovice | F73: 30000000 | G73: 5000000 | N73: 5000000
A74: 97 | B74: CYKLO | C74: SMČB | D74: Naplňování cyklogenerelu | F74: =SUM(H74:O74) -> 1600000 | G74: 1600000 | H74: 200000 | I74: 200000 | J74: 200000 | K74: 200000 | L74: 200000 | M74: 200000 | N74: 200000 | O74: 200000
A75: 98 | B75: PĚŠÍ | C75: SMČB | D75: Optimalizace pěších tras v území | F75: 8000000 | G75: 8000000 | H75: 1000000 | I75: 1000000 | J75: 1000000 | K75: 1000000 | L75: 1000000 | M75: 1000000 | N75: 1000000 | O75: 1000000
A76: 99 | B76: CYKLO | C76: SMČB | D76: Systém sdílení kol - Bike sharing | F76: 400000 | G76: 400000 | H76: 50000 | I76: 50000 | J76: 50000 | K76: 50000 | L76: 50000 | M76: 50000 | N76: 50000 | O76: 50000
A77: 100 | B77: PĚŠÍ | C77: SMČB | D77: Bezpečné přechody | F77: 20000000 | G77: 20000000 | H77: 2500000 | I77: 2500000 | J77: 2500000 | K77: 2500000 | L77: 2500000 | M77: 2500000 | N77: 2500000 | O77: 2500000
A78: 101 | B78: CYKLO | C78: SMČB | D78: Vyznačení společných přejezdů pro cyklisty a přechodů pro chodce na vybraných místech | F78: 4000000 | G78: 4000000 | H78: 500000 | I78: 500000 | J78: 500000 | K78: 500000 | L78: 500000 | M78: 500000 | N78: 500000 | O78: 500000
A79: 102 | B79: CYKLO | C79: SMČB | D79: Odstranění překážek na trase A | E79: Propojení současné cykloinfrastruktury | F79: 800000 | G79: 800000 | H79: 100000 | I79: 100000 | J79: 100000 | K79: 100000 | L79: 100000 | M79: 100000 | N79: 100000 | O79: 100000
A80: 103 | B80: CYKLO | C80: SMČB | D80: Odstranění překážek na trase B | E80: Propojení současné cykloinfrastruktury | F80: =SUM(H80:O80) -> 800000 | G80: 800000 | H80: 100000 | I80: 100000 | J80: 100000 | K80: 100000 | L80: 100000 | M80: 100000 | N80: 100000 | O80: 100000
A81: 104 | B81: CYKLO | C81: SMČB | D81: Odstranění překážek na trase C | E81: Propojení současné cykloinfrastruktury | F81: 800000 | G81: 800000 | H81: 100000 | I81: 100000 | J81: 100000 | K81: 100000 | L81: 100000 | M81: 100000 | N81: 100000 | O81: 100000
A82: 105 | B82: CYKLO | C82: SMČB | D82: Odstranění překážek na trase D | E82: Propojení současné cykloinfrastruktury | F82: 800000 | G82: 800000 | H82: 100000 | I82: 100000 | J82: 100000 | K82: 100000 | L82: 100000 | M82: 100000 | N82: 100000 | O82: 100000
A83: 106 | B83: CYKLO | C83: SMČB | D83: Odstranění překážek na trase E | E83: Propojení současné cykloinfrastruktury | F83: 800000 | G83: 800000 | H83: 100000 | I83: 100000 | J83: 100000 | K83: 100000 | L83: 100000 | M83: 100000 | N83: 100000 | O83: 100000
A84: 107 | B84: CYKLO | C84: SMČB | D84: Odstranění překážek na trase F | E84: Propojení současné cykloinfrastruktury | F84: 800000 | G84: 800000 | H84: 100000 | I84: 100000 | J84: 100000 | K84: 100000 | L84: 100000 | M84: 100000 | N84: 100000 | O84: 100000
A85: 108 | B85: CYKLO | C85: SMČB | D85: Odstranění překážek na trase G | E85: Propojení současné cykloinfrastruktury | F85: 800000 | G85: 800000 | H85: 100000 | I85: 100000 | J85: 100000 | K85: 100000 | L85: 100000 | M85: 100000 | N85: 100000 | O85: 100000
A86: 109 | B86: CYKLO | C86: SMČB | D86: Odstranění překážek na trase H | E86: Propojení současné cykloinfrastruktury | F86: 800000 | G86: 800000 | H86: 100000 | I86: 100000 | J86: 100000 | K86: 100000 | L86: 100000 | M86: 100000 | N86: 100000 | O86: 100000
A87: 110 | B87: CYKLO | C87: SMČB | D87: Odstranění překážek na trase J | E87: Propojení současné cykloinfrastruktury | F87: 800000 | G87: 800000 | H87: 100000 | I87: 100000 | J87: 100000 | K87: 100000 | L87: 100000 | M87: 100000 | N87: 100000 | O87: 100000
A88: 111 | B88: CYKLO | C88: SMČB/JČK/OBEC | D88: Realizace rekreačních cyklostezek | E88: Např. Vrbenské rybníky, Haklovy Dvory - okruh - České Vrbné - Vltava (podél Husovy ul.), Hvízdal - stará plzeňská trať - Dasný, Hluboká nádr., Bezdrev, Branišovská - Branišov - Dubné (směr Holašovice, Kluk), Malše - Roudné - Plav - Doudleby, Rožnov - Planá - letiště - Homole - směr Kleť, Nemanice - Hluboká - Ševětín - po vybudování žel. Tunelu Hrdějovice - Ševětín, využít stávající trať přes Zámostí, Cyklostezka Východ - kolem Vráteckého potoka do Rudolfova | F88: =SUM(H88:O88) -> 8000000 | G88: 8000000 | H88: 1000000 | I88: 1000000 | J88: 1000000 | K88: 1000000 | L88: 1000000 | M88: 1000000 | N88: 1000000 | O88: 1000000
A89: Veřejná doprava
A90: 113 | B90: VHD | C90: JČK | D90: Letiště České Budějovice | F90: 400000000 | G90: =H90+I90+J90+K90+L90+M90+N90+O90 -> 0
A91: 116 | B91: VHD | C91: SMČB | D91: Zastávka Červený Dvůr | F91: 2000000 | G91: =H91+I91+J91+K91+L91+M91+N91+O91 -> 2000000 | J91: 2000000
A92: 117 | B92: VHD | C92: SMČB | D92: Zastávka Karla IV. | F92: 2000000 | G92: 2000000 | H92: 2000000
A93: 118 | B93: VHD | C93: SMČB | D93: Zastávka Komerční zóna Hodějovice | F93: 2000000 | G93: 2000000 | N93: 2000000
A94: 119 | B94: VHD | C94: SMČB | D94: Zastávka Krematorium | F94: 2000000 | G94: 2000000 | I94: 2000000
A95: 120 | B95: VHD | C95: SMČB | D95: Zastávka Multikino | F95: 2000000 | G95: 2000000 | I95: 2000000
A96: 121 | B96: VHD | C96: SMČB | D96: Zastávka Na Zlaté Stoce | F96: 2000000 | G96: 2000000 | M96: 2000000
A97: 123 | B97: VHD | C97: SMČB | D97: Zastávka Parkoviště Dlouhá Louka | F97: 4000000 | G97: 4000000 | H97: 4000000
A98: 124 | B98: VHD | C98: SMČB | D98: Zastávka Parkoviště Dynamo | F98: 2000000 | G98: 2000000 | I98: 2000000
A99: 125 | B99: VHD | C99: SMČB | D99: Zastávka Pod Vrškem | F99: 2000000 | G99: 2000000 | M99: 2000000
A100: 126 | B100: VHD | C100: SMČB | D100: Zastávka Pohůrka | F100: 2000000 | G100: 2000000 | N100: 2000000
A101: 127 | B101: VHD | C101: SMČB | D101: Zastávka Robert Bosch | F101: 2000000 | G101: 2000000 | L101: 2000000
A102: 128 | B102: VHD | C102: SMČB | D102: Zastávka Samson | F102: 2000000 | G102: 2000000 | I102: 2000000
A103: 129 | B103: VHD | C103: SMČB | D103: Zastávka Sportovní hala | F103: 2000000 | G103: 2000000 | I103: 2000000
A104: 130 | B104: VHD | C104: SMČB | D104: Zastávka Švábův Hrádek | F104: 2000000 | G104: 4000000 | I104: 2000000 | M104: 2000000
A105: 131 | B105: VHD | C105: SMČB | D105: Zastávka Tolejbusová vozovna | F105: 2000000 | G105: 2000000 | I105: 2000000
A106: 132 | B106: VHD | C106: SMČB | D106: Zastávka U Rozvodny | F106: 2000000 | G106: 2000000 | N106: 2000000
A107: 133 | B107: VHD | C107: SMČB | D107: Zastávka Za Otýlií | F107: 2000000 | G107: 2000000 | O107: 2000000
A108: 134 | B108: VHD | C108: DPMČB | D108: Rozvoj ITS pro MHD | F108: 50000000 | G108: 0 | I108: 50000000
A109: 137 | B109: VHD | C109: DPMČB | D109: Modernizace napájecí soustavy MHD | F109: 111000000 | G109: 0
A110: 138 | B110: VHD | C110: JČK/DPMČB | D110: Rozvoj IDSJK | F110: 50000000 | G110: 0
A111: 139 | B111: VHD | C111: DPMČB | D111: Napojení trolejbusové vozovny přes ul. Generála Píky | F111: 70000000 | G111: 0 | I111: 0
A112: 140 | B112: VHD | C112: SMČB | D112: Přestupní uzly a terminály VHD | F112: =SUM(H112:O112) -> 11700000 | G112: 11700000 | H112: 300000 | I112: 3300000 | J112: 6600000 | K112: 300000 | L112: 300000 | M112: 300000 | N112: 300000 | O112: 300000
A113: 141 | B113: VHD | C113: DPMČB/SMČB | D113: Zavedení MHD do historického centra | E113: Ekologická doprava | F113: 200000000 | G113: 5000000 | H113: 5000000
A114: 142 | B114: VHD | C114: DPMČB | D114: Průběžná obnova vozového parku MHD | E114: Podpora ekologické dopravy, nakup elektrobusu, CNG, trolejbusů s bateriemi | F114: 790000000 | G114: 0
A115: 143 | B115: VHD | C115: SMČB/SŽDC | D115: Realizace dalšího vstupu do vlakového nádraží z ul. Dobrovodské | F115: 400000000 | G115: 50000000 | O115: 50000000
A116: Telematika
A117: 144 | B117: IAD/VHD | C117: SMČB | D117: Strategické detektory | E117: Sběr dopravních dat | F117: 30000000 | G117: =H117+I117+J117+K117+L117+M117+N117+O117 -> 30000000 | H117: 5000000 | J117: 10000000 | K117: 15000000
A118: 145 | B118: IAD/VHD | C118: SMČB | D118: Kamerový dohledový systém | F118: 14500000 | G118: =H118+I118+J118+K118+L118+M118+N118+O118 -> 14500000 | H118: 600000 | I118: 7000000 | J118: 6900000
A119: 146 | B119: IAD/VHD | C119: SMČB | D119: Parkovací a naváděcí systémy parkovišť | F119: 17000000 | G119: 17000000 | H119: 600000 | I119: 8200000 | J119: 8200000
A120: 147 | B120: IAD/VHD | C120: SMČB | D120: Naváděcí systém objízdných tras | F120: 59000000 | G120: 59000000 | J120: 29500000 | K120: 29500000
A121: 148 | B121: IAD/VHD | C121: SMČB | D121: Modernizace křižovatek a přechodů pro chodce | F121: 50000000 | G121: 50000000 | H121: 10000000 | I121: 10000000 | J121: 15000000 | K121: 15000000
A122: 149 | B122: IAD/VHD | C122: SMČB | D122: Preference MHD | F122: 45000000 | G122: 45000000 | H122: 45000000
A123: 150 | B123: IAD/VHD | C123: SMČB | D123: Inteligentní zastávky MHD | F123: 10500000 | G123: 10500000 | H123: 3000000 | I123: 2500000 | J123: 3000000 | K123: 2000000
A124: 151 | B124: IAD/VHD | C124: SMČB | D124: Preventivní a represivní systémy | F124: 19000000 | G124: 19000000 | I124: 5000000 | J124: 7000000 | K124: 7000000
A125: 152 | B125: IAD/VHD | C125: SMČB | D125: Meteosystémy | F125: 2000000 | G125: 2000000 | H125: 2000000
A126: 153 | B126: IAD/VHD | C126: SMČB | D126: Vysokorychlostní vážení vozidel | F126: 7000000 | G126: 7000000 | K126: 7000000
A127: 154 | B127: IAD/VHD | C127: SMČB | D127: Systémy pro podporu nemotorové dopravy | F127: 1500000 | G127: 1500000 | H127: 750000 | I127: 750000
A128: 155 | B128: IAD/VHD | C128: SMČB | D128: Dopravní informační a řídící centrum České Budějovice | F128: 125000000 | G128: 125000000 | H128: 2000000 | I128: 60000000 | J128: 63000000
A129: 156 | B129: IAD/VHD | C129: SMČB | D129: Dopravní portál města ČB | F129: 2000000 | G129: 2000000 | H129: 2000000
A130: 157 | B130: IAD/VHD | C130: SMČB | D130: Floating car data | F130: =SUM(H130:O130) -> 1500000 | G130: 1500000 | J130: 500000 | L130: 500000 | N130: 500000
A131: 158 | B131: IAD/VHD | C131: SMČB | D131: Kooperativní systémy C-ITS | F131: 500000 | G131: 500000 | O131: 500000
A132: Vodní doprava
A133: 160 | B133: VODNÍ | C133: ŘVC | D133: Úprava plavební cesty do centra ČB | E133: Pro rekreační plavbu | F133: 100000000 | G133: 0
A134: 161 | B134: VODNÍ | C134: ŘVC | D134: Přístaviště na Vltavě | E134: Pro rekreační plavbu | F134: 300000000 | G134: 0
A135: 163 | B135: VODNÍ | C135: JMK/ŘVC | D135: Protipovodňová opatření | F135: 50000000 | G135: 0
G136: =SUM(G3:G135) -> 2851100000 | H136: =SUM(H3:H135) -> 216950000 | I136: =SUM(I3:I135) -> 372850000 | J136: 556700000 | K136: 580700000 | L136: 281600000 | M136: 202100000 | N136: 320100000 | O136: 370100000
A138: Ceny obsahují cenovou úroveň roku 2018

Sheet měkká opatření
B1: Název projektu | C1: Popis | D1: Druh dopravy | E1: Investor | F1: Cena ročně
A2: UDRŽITELNÁ DOPRAVA | B2: Zlepšení vnímání městské hromadné dopravy ze strany veřejnosti | C2: Akce na podporu užívání MHD (Kampaně typu: Jezdit MHD je normální, MHD nesmrdí, Víte, že... (prezentace zajímavých dat a faktů o MHD), Slušné chování v MHD..) | D2: VHD | E2: SMČB/DPMČB | F2: 700000
B3: Zlepšení informovanosti cestujících v městské hromadné dopravě | C3: Propagační akce na podporu informovanosti o jednotlivých spojích, o zpoždění, o cenách jízdenek, on line jízdní řády… | D3: VHD | E3: SMČB/DPMČB | F3: 700000
B4: Informační a osvětové kampaně pro podporu veřejné dopravy DPMČB a JIKORD | C4: Propagační akce na podporu IDS, informace o existenci, výhodnosti tarifů a funkci IDS (Kampaň upozorňující na finanční i časovou úsporu) | D4: VHD | E4: SMČB/DPMČB/JIKORD | F4: 1500000
B5: Informační, osvětové a marketingové kampaně na podporu pěší a cyklistické dopravy | C5: Propagační kampaně typu: Do práce na kole, Den bez aut, Evropský den mobility. Propagační materiály s vyznačenými cyklostezkami a trasami pro pěší. Propagace cyklostojanů a míst "pro tvou duši" (místo s pumpičkou), dále pak odpočinkových míst pro pěší a cyklisty. Vhodné je propagovat také Bikesharing - způsob používání a umístění stanovišť. | D5: CYKLO, PĚŠÍ | E5: SMČB | F5: 500000
B6: Informační kampaň na podporu nízkoemisní dopravy | C6: Kampaň na podporu nízkoemisních autobusů, trolejbusů, ekologických vozidel městských organizací atd. Výhody, úspory, zlepšení životního prostředí | D6: IAD | E6: SMČB | F6: 50000
B7: Podpora pro carpooling (spolujízda) | C7: Propagační materiály vysvětlující spolujízdu, její výhody, zajišťování | D7: IAD | E7: SMČB | F7: 20000
B8: Podpora pro carsharing (sdílení vozidel) | C8: Propagační materiály vysvětlující princip sdílení vozidel, jejich používání a umístění, výhody, úspory | D8: IAD | E8: SMČB | F8: 20000
B9: Zavádění motivačních opatření pro ekologičtější vozidla | C9: Propagační materiály o výhodnosti ekologičtějších vozidel z hlediska vlivů na životní prostředí v Českých Budějovicích a zdraví jejich občanů | D9: IAD, VHD | E9: SMČB | F9: 50000
B10: Vypracování rámcových krizových plánů pro mimořádné události (zejména VHD) | C10: Informace o existenci těchto plánů. Při krizové události (kolizní události) VHD, IAD je již předem dané co kdo má dělat a kam je třeba dopravu odklonit. | D10: IAD, VHD | E10: SMČB/DPMČB | F10: 250000
B11: Zvýhodněné parkování pro vozidla s ekologickým pohonem | C11: Možnost zvýhodněného parkování v parkovacích zónách | D11: IAD | E11: SMČB | F11: 50000
B12: Propagace záchytných parkovišť a parkovacích domů | C12: Informační materiály, či informace v médiích či na viditelných místech - kde jsou tato parkoviště a parkovací domy umístěny a jejich cena | D12: IAD | E12: SMČB | F12: 50000
B13: Podpora firemních plánů mobility (bonusy, zázemí pro cyklisty atd.) | C13: Informační materiály - co jsou firemní plány mobility, k čemu jsou a jaké z nich plynou výhody pro zaměstnance | D13: VHD, CYKLO, PĚŠÍ | E13: SMČB | F13: 50000
A14: BEZPEČNOST, INFORMACE A VZDĚLÁVÁNÍ | B14: Osvětová kampaň pro zvyšování bezpečnosti pěší a cyklistické dopravy | C14: Kampaně zaměření na slušné a ohleduplné chování všech účastníků silničního provozu - Bezpečně na kole, Děti na kole, Helma, Cyklista je také řidič, S dětmi na kole, Přecházení vozovky, Chůze v silničním prostoru, Dítě ve městě, Cesta do školy… | D14: CYKLO, PĚŠÍ | E14: SMČB | F14: 50000
B15: Osvětová kampaň pro zvyšování bezpečnosti silničního provozu | C15: Kampaně zaměření na slušné a ohleduplné chování všech účastníků silničního provozu - Jak na přechodu, Vidět a být viděn, Pozor chodci | D15: IAD | E15: SMČB | F15: 50000
B16: Podpora dopravní výchovy dětí | C16: Dopravní výchova ve školách, školkách a při jakékoliv akci pořádané městem České Budějovice. Propagační předměty, hry, letáky, dopravní hřiště. | D16: IAD, VHD, CYKLO | E16: SMČB | F16: 50000
B17: Kampaň na podporu jednotlivých akcí | C17: Před investiční akcí trpělivě vysvětlovat veřejnosti co, jak a proč se tyto jednotlivé investice dělají. Jaké tyto stavby májí a budou mít výhody a případné dočasné nevýhody ( omezení v průběhu stavby). | D17: všechny typy dopravy | E17: SMČB | F17: 1000000
B18: Propagace udržitelné městské mobility | C18: Udržovat všeobecnou informovanost o udržitelných druzích doprav a možnosti veřejnosti ovlivňovat život v Českých Budějovicích | D18: všechny typy dopravy | E18: SMČB | F18: 50000
B19: Aktualizace a rozvoj informačních portálů | C19: Rozvoj portálů o VHD (online informace o spojích a jejich poloha, druh..), cyklo - aktuální stav cyklostezek (povrch, ..), pěší (zajímavá místa), IAD (uzavírky, délky oprav, kongesce), parkování, kvalitě životního prostředí. Vše na jedné stránce, přehledné, uživatelsky jednoduché | D19: všechny typy dopravy | E19: SMČB | F19: 50000
F20: =SUM(F2:F19) -> 5190000
